[Event "January 9 Late 2024"]
[Site "https://www.chess.com"]
[Date "2024.01.09"]
[Round "4"]
[White "Stojanovski, Sandi"]
[Black "Schnaider, Ilan"]
[Result "1-0"]
[Board "114"]
[TimeControl "180+1"]
[WhiteFideId "1403249"]
[BlackFideId "169013"]
[WhiteElo "2514"]
[BlackElo "2727"]
[WhiteTeam "DEN"]
[BlackTeam "ARG"]
[WhiteClock "0:00:18"]
[BlackClock "0:00:00"]

1. d3 {[%clk 0:03:00]}  Nf6 {[%clk 0:02:59]} 2. Nf3 {[%clk 0:03:00]}  g6 {[%clk 0:03:00]} 3. g3 {[%clk 0:03:01]}  Bg7 {[%clk 0:03:00]} 4. Bg2 {[%clk 0:03:01]}  O-O {[%clk 0:03:01]} 5. O-O {[%clk 0:03:01]}  d5 {[%clk 0:03:02]} 6. c4 {[%clk 0:03:02]}  Nc6 {[%clk 0:03:01]} 7. cxd5 {[%clk 0:02:58]}  Nxd5 {[%clk 0:03:02]} 8. a3 {[%clk 0:02:47]}  Bg4 {[%clk 0:02:59]} 9. h3 {[%clk 0:02:24]}  Bxf3 {[%clk 0:02:58]} 10. Bxf3 {[%clk 0:02:23]}  Qd7 {[%clk 0:02:59]} 11. Qb3 {[%clk 0:01:59]}  Nb6 {[%clk 0:02:57]} 12. Bg2 {[%clk 0:01:51]}  Nd4 {[%clk 0:02:57]} 13. Qd1 {[%clk 0:01:49]}  e5 {[%clk 0:02:58]} 14. Nc3 {[%clk 0:01:46]}  Rad8 {[%clk 0:02:57]} 15. Be3 {[%clk 0:01:31]}  c6 {[%clk 0:02:53]} 16. Rc1 {[%clk 0:01:27]}  Rfe8 {[%clk 0:02:52]} 17. b4 {[%clk 0:01:25]}  Nd5 {[%clk 0:02:50]} 18. Nxd5 {[%clk 0:01:22]}  cxd5 {[%clk 0:02:51]} 19. Bxd4 {[%clk 0:01:18]}  exd4 {[%clk 0:02:52]} 20. h4 {[%clk 0:01:16]}  Qe6 {[%clk 0:02:48]} 21. Rc7 {[%clk 0:01:10]}  Qxe2 {[%clk 0:02:38]} 22. Rxb7 {[%clk 0:01:03]}  a6 {[%clk 0:02:31]} 23. Ra7 {[%clk 0:00:59]}  Qe6 {[%clk 0:02:28]} 24. Qa4 {[%clk 0:00:55]}  Ra8 {[%clk 0:02:18]} 25. Rxa8 {[%clk 0:00:49]}  Rxa8 {[%clk 0:02:19]} 26. Rc1 {[%clk 0:00:48]}  Bh6 {[%clk 0:02:15]} 27. Qc6 {[%clk 0:00:38]}  Re8 {[%clk 0:00:53]} 28. Qxe6 {[%clk 0:00:37]}  Rxe6 {[%clk 0:00:52]} 29. Rc8+ {[%clk 0:00:35]}  Kg7 {[%clk 0:00:52]} 30. Bxd5 {[%clk 0:00:35]}  Rd6 {[%clk 0:00:40]} 31. Bc4 {[%clk 0:00:33]}  Bd2 {[%clk 0:00:41]} 32. Ra8 {[%clk 0:00:26]}  Bc1 {[%clk 0:00:34]} 33. Rxa6 {[%clk 0:00:20]}  Rxa6 {[%clk 0:00:34]} 34. Bxa6 {[%clk 0:00:21]}  Bxa3 {[%clk 0:00:35]} 35. b5 {[%clk 0:00:20]}  Bc5 {[%clk 0:00:36]} 36. Bb7 {[%clk 0:00:20]}  f5 {[%clk 0:00:34]} 37. f4 {[%clk 0:00:18]}  h6 {[%clk 0:00:33]} 38. Kg2 {[%clk 0:00:18]}  Kf6 {[%clk 0:00:34]} 39. Kf3 {[%clk 0:00:17]}  g5 {[%clk 0:00:35]} 40. fxg5+ {[%clk 0:00:14]}  hxg5 {[%clk 0:00:36]} 41. Bc8 {[%clk 0:00:10]}  g4+ {[%clk 0:00:33]} 42. Kf2 {[%clk 0:00:10]}  Kg6 {[%clk 0:00:26]} 43. Ke2 {[%clk 0:00:07]}  Kf6 {[%clk 0:00:24]} 44. Kf2 {[%clk 0:00:06]}  Ke5 {[%clk 0:00:21]} 45. h5 {[%clk 0:00:06]}  Kf6 {[%clk 0:00:19]} 46. h6 {[%clk 0:00:06]}  Kg6 {[%clk 0:00:11]} 47. h7 {[%clk 0:00:07]}  Kxh7 {[%clk 0:00:08]} 48. Bxf5+ {[%clk 0:00:08]}  Kg7 {[%clk 0:00:07]} 49. Bxg4 {[%clk 0:00:09]}  Kf6 {[%clk 0:00:08]} 50. Kf3 {[%clk 0:00:09]}  Ke5 {[%clk 0:00:07]} 51. Bh5 {[%clk 0:00:09]}  Bb6 {[%clk 0:00:07]} 52. Be8 {[%clk 0:00:10]}  Bc5 {[%clk 0:00:05]} 53. Bc6 {[%clk 0:00:11]}  Bb6 {[%clk 0:00:05]} 54. Kg4 {[%clk 0:00:12]}  Bc5 {[%clk 0:00:05]} 55. Kh5 {[%clk 0:00:12]}  Kf6 {[%clk 0:00:03]} 56. g4 {[%clk 0:00:12]}  Kg7 {[%clk 0:00:04]} 57. g5 {[%clk 0:00:13]}  Bb6 {[%clk 0:00:05]} 58. Kg4 {[%clk 0:00:13]}  Bc5 {[%clk 0:00:05]} 59. Kf5 {[%clk 0:00:14]}  Bb6 {[%clk 0:00:06]} 60. Be4 {[%clk 0:00:14]}  Kf7 {[%clk 0:00:04]} 61. Ke5 {[%clk 0:00:12]}  Bd8 {[%clk 0:00:03]} 62. g6+ {[%clk 0:00:12]}  Kg7 {[%clk 0:00:02]} 63. Kxd4 {[%clk 0:00:12]}  Bh4 {[%clk 0:00:02]} 64. Kd5 {[%clk 0:00:13]}  Bf2 {[%clk 0:00:02]} 65. Kc6 {[%clk 0:00:14]}  Bg3 {[%clk 0:00:02]} 66. b6 {[%clk 0:00:15]}  Kf6 {[%clk 0:00:02]} 67. b7 {[%clk 0:00:15]}  Bb8 {[%clk 0:00:01]} 68. Kd7 {[%clk 0:00:16]}  Be5 {[%clk 0:00:01]} 69. Kc8 {[%clk 0:00:17]}  Ke7 {[%clk 0:00:02]} 70. b8=Q {[%clk 0:00:18]}  Bxb8 {[%clk 0:00:00]} 71. Kxb8 {[%clk 0:00:18]} 1-0

[Event "January 9 Late 2024"]
[Site "https://www.chess.com"]
[Date "2024.01.09"]
[Round "4"]
[White "Cilek, Bora"]
[Black "Sieciechowicz, Marcin"]
[Result "0-1"]
[Board "118"]
[TimeControl "180+1"]
[WhiteFideId "34502165"]
[BlackFideId "1130170"]
[WhiteElo "2463"]
[BlackElo "2687"]
[WhiteTeam "TUR"]
[BlackTeam "POL"]
[WhiteClock "0:00:01"]
[BlackClock "0:00:33"]

1. d4 {[%clk 0:03:00]}  Nf6 {[%clk 0:02:57]} 2. Bf4 {[%clk 0:03:00]}  g6 {[%clk 0:02:49]} 3. Nc3 {[%clk 0:02:58]}  d5 {[%clk 0:02:46]} 4. e3 {[%clk 0:02:58]}  Bg7 {[%clk 0:02:46]} 5. h4 {[%clk 0:02:58]}  h5 {[%clk 0:02:40]} 6. Be2 {[%clk 0:02:56]}  O-O {[%clk 0:02:39]} 7. Nf3 {[%clk 0:02:52]}  c5 {[%clk 0:02:39]} 8. Nb5 {[%clk 0:02:43]}  Na6 {[%clk 0:02:30]} 9. c3 {[%clk 0:02:42]}  Bg4 {[%clk 0:02:21]} 10. Ne5 {[%clk 0:02:41]}  Bxe2 {[%clk 0:02:20]} 11. Qxe2 {[%clk 0:02:41]}  c4 {[%clk 0:01:56]} 12. O-O {[%clk 0:02:07]}  Nd7 {[%clk 0:01:53]} 13. Nxd7 {[%clk 0:02:04]}  Qxd7 {[%clk 0:01:54]} 14. Na3 {[%clk 0:02:02]}  Nc7 {[%clk 0:01:45]} 15. Bxc7 {[%clk 0:02:00]}  Qxc7 {[%clk 0:01:45]} 16. e4 {[%clk 0:02:01]}  e6 {[%clk 0:01:40]} 17. Nc2 {[%clk 0:01:58]}  Qf4 {[%clk 0:01:38]} 18. exd5 {[%clk 0:01:54]}  exd5 {[%clk 0:01:39]} 19. g3 {[%clk 0:01:54]}  Qd6 {[%clk 0:01:36]} 20. Ne3 {[%clk 0:01:51]}  Rae8 {[%clk 0:01:35]} 21. Qf3 {[%clk 0:01:51]}  Rd8 {[%clk 0:01:30]} 22. Rfe1 {[%clk 0:01:48]}  Bh6 {[%clk 0:01:29]} 23. Re2 {[%clk 0:01:46]}  Rfe8 {[%clk 0:01:23]} 24. Rae1 {[%clk 0:01:45]}  Re6 {[%clk 0:01:23]} 25. Nc2 {[%clk 0:01:34]}  Rde8 {[%clk 0:01:22]} 26. Rxe6 {[%clk 0:01:25]}  Rxe6 {[%clk 0:01:23]} 27. Rxe6 {[%clk 0:01:25]}  fxe6 {[%clk 0:01:10]} 28. Kg2 {[%clk 0:01:20]}  Qe7 {[%clk 0:01:08]} 29. b3 {[%clk 0:01:07]}  b5 {[%clk 0:01:05]} 30. Nb4 {[%clk 0:01:03]}  Kg7 {[%clk 0:00:58]} 31. Nc6 {[%clk 0:01:03]}  Qf6 {[%clk 0:00:59]} 32. Qxf6+ {[%clk 0:00:58]}  Kxf6 {[%clk 0:01:00]} 33. Nxa7 {[%clk 0:00:57]}  b4 {[%clk 0:01:00]} 34. Nb5 {[%clk 0:00:55]}  bxc3 {[%clk 0:00:53]} 35. Nxc3 {[%clk 0:00:53]}  Bd2 {[%clk 0:00:54]} 36. Nb5 {[%clk 0:00:49]}  Bb4 {[%clk 0:00:47]} 37. bxc4 {[%clk 0:00:19]}  dxc4 {[%clk 0:00:48]} 38. d5 {[%clk 0:00:16]}  e5 {[%clk 0:00:40]} 39. a3 {[%clk 0:00:04]}  c3 {[%clk 0:00:39]} 40. axb4 {[%clk 0:00:04]}  c2 {[%clk 0:00:38]} 41. Nc3 {[%clk 0:00:04]}  c1=Q {[%clk 0:00:37]} 42. Ne4+ {[%clk 0:00:04]}  Ke7 {[%clk 0:00:36]} 43. d6+ {[%clk 0:00:02]}  Ke6 {[%clk 0:00:36]} 44. b5 {[%clk 0:00:03]}  Qb1 {[%clk 0:00:33]} 45. Ng5+ {[%clk 0:00:01]}  Kxd6 {[%clk 0:00:33]} 0-1

[Event "January 9 Late 2024"]
[Site "https://www.chess.com"]
[Date "2024.01.09"]
[Round "4"]
[White "Nilsen, Tobias Lang"]
[Black "Krishnan, Varun"]
[Result "1-0"]
[Board "119"]
[TimeControl "180+1"]
[WhiteFideId "1521624"]
[BlackFideId "5054508"]
[WhiteElo "2460"]
[BlackElo "2668"]
[WhiteTeam "NOR"]
[BlackTeam "USA"]
[WhiteClock "0:00:24"]
[BlackClock "0:00:26"]

1. e4 {[%clk 0:03:00]}  c6 {[%clk 0:02:59]} 2. Nc3 {[%clk 0:03:00]}  d5 {[%clk 0:02:59]} 3. Nf3 {[%clk 0:03:01]}  Bg4 {[%clk 0:02:54]} 4. h3 {[%clk 0:03:01]}  Bxf3 {[%clk 0:02:54]} 5. Qxf3 {[%clk 0:03:02]}  e6 {[%clk 0:02:54]} 6. d3 {[%clk 0:03:02]}  Nf6 {[%clk 0:02:53]} 7. Bd2 {[%clk 0:03:03]}  Be7 {[%clk 0:02:53]} 8. g4 {[%clk 0:03:02]}  a5 {[%clk 0:02:50]} 9. Qg3 {[%clk 0:03:01]}  a4 {[%clk 0:02:47]} 10. a3 {[%clk 0:03:01]}  Na6 {[%clk 0:02:42]} 11. f4 {[%clk 0:03:00]}  dxe4 {[%clk 0:02:36]} 12. dxe4 {[%clk 0:02:57]}  Nc5 {[%clk 0:02:32]} 13. Bg2 {[%clk 0:02:53]}  Qb6 {[%clk 0:02:25]} 14. O-O-O {[%clk 0:02:36]}  O-O-O {[%clk 0:02:19]} 15. g5 {[%clk 0:02:31]}  Ne8 {[%clk 0:02:18]} 16. Be3 {[%clk 0:02:25]}  Qa5 {[%clk 0:02:04]} 17. Qf2 {[%clk 0:01:47]}  Nc7 {[%clk 0:01:47]} 18. f5 {[%clk 0:01:40]}  e5 {[%clk 0:01:23]} 19. f6 {[%clk 0:01:26]}  gxf6 {[%clk 0:01:18]} 20. gxf6 {[%clk 0:01:27]}  Bd6 {[%clk 0:01:18]} 21. Rxd6 {[%clk 0:01:25]}  Rxd6 {[%clk 0:01:19]} 22. Bxc5 {[%clk 0:01:25]}  Rd7 {[%clk 0:01:20]} 23. h4 {[%clk 0:01:17]}  Ne6 {[%clk 0:01:18]} 24. Be7 {[%clk 0:01:15]}  Rg8 {[%clk 0:01:15]} 25. Bh3 {[%clk 0:01:15]}  Nf4 {[%clk 0:00:59]} 26. Bxd7+ {[%clk 0:00:52]}  Kxd7 {[%clk 0:01:00]} 27. Qd2+ {[%clk 0:00:52]}  Kc8 {[%clk 0:00:59]} 28. Rd1 {[%clk 0:00:42]}  Ne6 {[%clk 0:00:43]} 29. Qd7+ {[%clk 0:00:36]}  Kb8 {[%clk 0:00:43]} 30. Bb4 {[%clk 0:00:32]}  Qb6 {[%clk 0:00:37]} 31. Qxf7 {[%clk 0:00:29]}  Rg1 {[%clk 0:00:35]} 32. Qxe6 {[%clk 0:00:25]}  Qe3+ {[%clk 0:00:33]} 33. Kb1 {[%clk 0:00:25]}  Ka7 {[%clk 0:00:31]} 34. Qd6 {[%clk 0:00:24]}  Rg2 {[%clk 0:00:26]} 35. Bc5+ {[%clk 0:00:24]} 1-0

[Event "January 9 Late 2024"]
[Site "https://www.chess.com"]
[Date "2024.01.09"]
[Round "4"]
[White "Vlassov, Nikolai"]
[Black "Musalov, Ruslan"]
[Result "0-1"]
[Board "120"]
[TimeControl "180+1"]
[WhiteFideId "4103360"]
[BlackFideId "4141490"]
[WhiteElo "2651"]
[BlackElo "2459"]
[WhiteTeam "FID"]
[BlackTeam "RUS"]
[WhiteClock "0:00:05"]
[BlackClock "0:00:08"]

1. e4 {[%clk 0:03:00]}  c5 {[%clk 0:03:00]} 2. c3 {[%clk 0:03:00]}  d5 {[%clk 0:02:58]} 3. exd5 {[%clk 0:03:01]}  Qxd5 {[%clk 0:02:58]} 4. d4 {[%clk 0:03:00]}  cxd4 {[%clk 0:02:59]} 5. cxd4 {[%clk 0:03:00]}  e5 {[%clk 0:03:00]} 6. Nf3 {[%clk 0:02:59]}  exd4 {[%clk 0:02:59]} 7. Qxd4 {[%clk 0:02:55]}  Nf6 {[%clk 0:02:59]} 8. Nc3 {[%clk 0:02:55]}  Qxd4 {[%clk 0:02:56]} 9. Nxd4 {[%clk 0:02:55]}  Nc6 {[%clk 0:02:56]} 10. Ndb5 {[%clk 0:02:32]}  Kd8 {[%clk 0:02:43]} 11. Bf4 {[%clk 0:02:30]}  Bd7 {[%clk 0:02:37]} 12. O-O-O {[%clk 0:02:30]}  a6 {[%clk 0:02:34]} 13. Nd6 {[%clk 0:02:28]}  Bxd6 {[%clk 0:02:35]} 14. Bxd6 {[%clk 0:02:28]}  Re8 {[%clk 0:02:32]} 15. Bc4 {[%clk 0:02:26]}  Ng4 {[%clk 0:02:17]} 16. Bxf7 {[%clk 0:02:21]}  Nxf2 {[%clk 0:01:59]} 17. Bxe8 {[%clk 0:02:20]}  Bxe8 {[%clk 0:01:59]} 18. Be5+ {[%clk 0:01:59]}  Ke7 {[%clk 0:01:46]} 19. Bxg7 {[%clk 0:01:53]}  Nxh1 {[%clk 0:01:44]} 20. Rxh1 {[%clk 0:01:52]}  Bg6 {[%clk 0:01:43]} 21. Rf1 {[%clk 0:01:41]}  Nb4 {[%clk 0:01:25]} 22. b3 {[%clk 0:01:03]}  Rc8 {[%clk 0:01:09]} 23. Kb2 {[%clk 0:00:58]}  Nd3+ {[%clk 0:01:06]} 24. Ka3 {[%clk 0:00:59]}  b5 {[%clk 0:01:02]} 25. b4 {[%clk 0:00:56]}  a5 {[%clk 0:00:52]} 26. Nxb5 {[%clk 0:00:46]}  axb4+ {[%clk 0:00:51]} 27. Ka4 {[%clk 0:00:37]}  Ra8+ {[%clk 0:00:48]} 28. Kb3 {[%clk 0:00:37]}  Bf7+ {[%clk 0:00:36]} 29. Kc2 {[%clk 0:00:37]}  Bc4 {[%clk 0:00:33]} 30. Bf6+ {[%clk 0:00:20]}  Kd7 {[%clk 0:00:30]} 31. a4 {[%clk 0:00:19]}  Rxa4 {[%clk 0:00:29]} 32. Rf5 {[%clk 0:00:16]}  Ra2+ {[%clk 0:00:27]} 33. Kb1 {[%clk 0:00:17]}  Rxg2 {[%clk 0:00:26]} 34. h4 {[%clk 0:00:11]}  b3 {[%clk 0:00:17]} 35. Bd4 {[%clk 0:00:11]}  b2 {[%clk 0:00:16]} 36. Nc3 {[%clk 0:00:09]}  Rh2 {[%clk 0:00:13]} 37. Rf1 {[%clk 0:00:08]}  Nb4 {[%clk 0:00:09]} 38. Rd1 {[%clk 0:00:04]}  Bd3+ {[%clk 0:00:10]} 39. Rxd3 {[%clk 0:00:04]}  Nxd3 {[%clk 0:00:11]} 40. Ne4 {[%clk 0:00:04]}  Rh1+ {[%clk 0:00:10]} 41. Kc2 {[%clk 0:00:03]}  b1=Q+ {[%clk 0:00:10]} 42. Kc3 {[%clk 0:00:04]}  Rc1+ {[%clk 0:00:09]} 43. Kd2 {[%clk 0:00:04]}  Qc2+ {[%clk 0:00:10]} 44. Ke3 {[%clk 0:00:05]}  Re1+ {[%clk 0:00:09]} 45. Kf3 {[%clk 0:00:05]}  Qe2+ {[%clk 0:00:09]} 46. Kg3 {[%clk 0:00:05]}  Qxe4 {[%clk 0:00:08]} 0-1

[Event "January 9 Late 2024"]
[Site "https://www.chess.com"]
[Date "2024.01.09"]
[Round "4"]
[White "Morales Garcia, Sergio Joshafatt"]
[Black "Ibadov, Dashgyn"]
[Result "1-0"]
[Board "121"]
[TimeControl "180+1"]
[WhiteFideId "5106249"]
[BlackFideId "24107514"]
[WhiteElo "2458"]
[BlackElo "2641"]
[WhiteTeam "MEX"]
[BlackTeam "FID"]
[WhiteClock "0:00:16"]
[BlackClock "0:00:00"]

1. d4 {[%clk 0:03:00]}  d5 {[%clk 0:02:59]} 2. c4 {[%clk 0:02:51]}  e6 {[%clk 0:02:58]} 3. Nf3 {[%clk 0:02:52]}  c6 {[%clk 0:02:57]} 4. Qc2 {[%clk 0:02:51]}  Nf6 {[%clk 0:02:53]} 5. Bf4 {[%clk 0:02:49]}  dxc4 {[%clk 0:02:47]} 6. Qxc4 {[%clk 0:02:48]}  b5 {[%clk 0:02:48]} 7. Qc2 {[%clk 0:02:47]}  Bb7 {[%clk 0:02:48]} 8. e4 {[%clk 0:02:44]}  Nbd7 {[%clk 0:02:40]} 9. Nc3 {[%clk 0:02:43]}  b4 {[%clk 0:02:32]} 10. Na4 {[%clk 0:02:42]}  c5 {[%clk 0:02:31]} 11. Bd3 {[%clk 0:02:19]}  Rc8 {[%clk 0:02:15]} 12. dxc5 {[%clk 0:02:11]}  Bxc5 {[%clk 0:02:05]} 13. O-O {[%clk 0:01:55]}  O-O {[%clk 0:01:47]} 14. Qe2 {[%clk 0:01:55]}  h6 {[%clk 0:01:29]} 15. Rfd1 {[%clk 0:01:55]}  Qe7 {[%clk 0:01:28]} 16. Rac1 {[%clk 0:01:45]}  e5 {[%clk 0:01:06]} 17. Be3 {[%clk 0:01:39]}  Bxe3 {[%clk 0:01:01]} 18. Qxe3 {[%clk 0:01:40]}  Nc5 {[%clk 0:01:01]} 19. Rxc5 {[%clk 0:01:34]}  Ng4 {[%clk 0:00:58]} 20. Qc1 {[%clk 0:01:30]}  Qe6 {[%clk 0:00:19]} 21. h3 {[%clk 0:01:26]}  Nf6 {[%clk 0:00:14]} 22. Qc2 {[%clk 0:01:10]}  Qxa2 {[%clk 0:00:12]} 23. b3 {[%clk 0:01:01]}  Qxc2 {[%clk 0:00:11]} 24. Rxc2 {[%clk 0:00:51]}  Bxe4 {[%clk 0:00:08]} 25. Rxc8 {[%clk 0:00:45]}  Rxc8 {[%clk 0:00:07]} 26. Bxe4 {[%clk 0:00:45]}  Nxe4 {[%clk 0:00:07]} 27. Nxe5 {[%clk 0:00:44]}  Rc2 {[%clk 0:00:08]} 28. Nd3 {[%clk 0:00:34]}  a5 {[%clk 0:00:08]} 29. f3 {[%clk 0:00:27]}  Ng3 {[%clk 0:00:05]} 30. Kh2 {[%clk 0:00:25]}  Nf5 {[%clk 0:00:02]} 31. Ne5 {[%clk 0:00:17]}  f6 {[%clk 0:00:00]} 32. Ng4 {[%clk 0:00:16]} 1-0

[Event "January 9 Late 2024"]
[Site "https://www.chess.com"]
[Date "2024.01.09"]
[Round "4"]
[White "Janaszak, Dawid"]
[Black "Kazmaier, Daniel"]
[Result "1-0"]
[Board "122"]
[TimeControl "180+1"]
[WhiteFideId "1119206"]
[BlackFideId "2606089"]
[WhiteElo "2633"]
[BlackElo "2456"]
[WhiteTeam "POL"]
[BlackTeam "CAN"]
[WhiteClock "0:00:17"]
[BlackClock "0:00:04"]

1. d4 {[%clk 0:03:00]}  f5 {[%clk 0:02:58]} 2. h3 {[%clk 0:02:57]}  d5 {[%clk 0:02:57]} 3. Bf4 {[%clk 0:02:57]}  Nf6 {[%clk 0:02:56]} 4. Nf3 {[%clk 0:02:57]}  e6 {[%clk 0:02:56]} 5. e3 {[%clk 0:02:57]}  Bd6 {[%clk 0:02:56]} 6. Ne5 {[%clk 0:02:57]}  O-O {[%clk 0:02:52]} 7. Nd2 {[%clk 0:02:57]}  c5 {[%clk 0:02:49]} 8. c3 {[%clk 0:02:57]}  Nc6 {[%clk 0:02:48]} 9. g4 {[%clk 0:02:55]}  Qc7 {[%clk 0:02:47]} 10. gxf5 {[%clk 0:02:54]}  Nxe5 {[%clk 0:02:46]} 11. dxe5 {[%clk 0:02:54]}  Bxe5 {[%clk 0:02:45]} 12. Bxe5 {[%clk 0:02:53]}  Qxe5 {[%clk 0:02:45]} 13. fxe6 {[%clk 0:02:53]}  Bxe6 {[%clk 0:02:35]} 14. Qa4 {[%clk 0:02:48]}  Ne4 {[%clk 0:02:30]} 15. Nxe4 {[%clk 0:02:46]}  dxe4 {[%clk 0:02:30]} 16. Rg1 {[%clk 0:02:39]}  Rad8 {[%clk 0:02:16]} 17. Bc4 {[%clk 0:02:31]}  Kh8 {[%clk 0:02:01]} 18. Bxe6 {[%clk 0:02:16]}  Qxe6 {[%clk 0:02:02]} 19. Qb3 {[%clk 0:02:16]}  Qxh3 {[%clk 0:01:53]} 20. Qxb7 {[%clk 0:02:13]}  Qd7 {[%clk 0:01:32]} 21. Qxd7 {[%clk 0:02:10]}  Rxd7 {[%clk 0:01:33]} 22. Rg4 {[%clk 0:02:00]}  Re8 {[%clk 0:01:20]} 23. Ke2 {[%clk 0:01:52]}  g6 {[%clk 0:01:13]} 24. Rh1 {[%clk 0:01:51]}  Kg7 {[%clk 0:01:11]} 25. Rhh4 {[%clk 0:01:51]}  Rde7 {[%clk 0:01:10]} 26. Rh1 {[%clk 0:01:41]}  Re5 {[%clk 0:01:07]} 27. Rd1 {[%clk 0:01:40]}  R8e7 {[%clk 0:01:08]} 28. Rd6 {[%clk 0:01:37]}  g5 {[%clk 0:01:03]} 29. Rg1 {[%clk 0:01:22]}  h5 {[%clk 0:01:02]} 30. a4 {[%clk 0:01:19]}  g4 {[%clk 0:00:58]} 31. a5 {[%clk 0:01:18]}  Rg5 {[%clk 0:00:51]} 32. c4 {[%clk 0:01:14]}  h4 {[%clk 0:00:47]} 33. Rd5 {[%clk 0:01:14]}  Rg6 {[%clk 0:00:41]} 34. Rxc5 {[%clk 0:01:11]}  h3 {[%clk 0:00:40]} 35. Rh5 {[%clk 0:01:11]}  Rb7 {[%clk 0:00:38]} 36. Rb5 {[%clk 0:01:08]}  Rxb5 {[%clk 0:00:30]} 37. cxb5 {[%clk 0:01:09]}  Kf7 {[%clk 0:00:30]} 38. b4 {[%clk 0:01:06]}  Ke7 {[%clk 0:00:28]} 39. b6 {[%clk 0:01:03]}  axb6 {[%clk 0:00:28]} 40. a6 {[%clk 0:01:04]}  Kd6 {[%clk 0:00:23]} 41. a7 {[%clk 0:01:03]}  Rg8 {[%clk 0:00:23]} 42. Rxg4 {[%clk 0:00:58]}  Ra8 {[%clk 0:00:21]} 43. Rxe4 {[%clk 0:00:48]}  Rxa7 {[%clk 0:00:20]} 44. Rh4 {[%clk 0:00:48]}  Kd5 {[%clk 0:00:16]} 45. Rxh3 {[%clk 0:00:46]}  Ra2+ {[%clk 0:00:14]} 46. Kf3 {[%clk 0:00:45]}  Kc4 {[%clk 0:00:14]} 47. Rh4+ {[%clk 0:00:44]}  Kc3 {[%clk 0:00:13]} 48. b5 {[%clk 0:00:40]}  Rb2 {[%clk 0:00:13]} 49. Rh5 {[%clk 0:00:39]}  Kc4 {[%clk 0:00:11]} 50. e4 {[%clk 0:00:39]}  Kd4 {[%clk 0:00:11]} 51. Rd5+ {[%clk 0:00:34]}  Kc4 {[%clk 0:00:11]} 52. Ke3 {[%clk 0:00:33]}  Rb3+ {[%clk 0:00:09]} 53. Kf4 {[%clk 0:00:30]}  Rb2 {[%clk 0:00:09]} 54. f3 {[%clk 0:00:30]}  Rxb5 {[%clk 0:00:08]} 55. Rd1 {[%clk 0:00:21]}  Rb2 {[%clk 0:00:05]} 56. e5 {[%clk 0:00:22]}  Re2 {[%clk 0:00:05]} 57. Kf5 {[%clk 0:00:22]}  b5 {[%clk 0:00:05]} 58. f4 {[%clk 0:00:20]}  b4 {[%clk 0:00:05]} 59. Ke6 {[%clk 0:00:21]}  b3 {[%clk 0:00:06]} 60. f5 {[%clk 0:00:21]}  b2 {[%clk 0:00:06]} 61. f6 {[%clk 0:00:22]}  Rd2 {[%clk 0:00:05]} 62. Rb1 {[%clk 0:00:20]}  Kc3 {[%clk 0:00:05]} 63. f7 {[%clk 0:00:21]}  Rf2 {[%clk 0:00:04]} 64. Ke7 {[%clk 0:00:20]}  Kd4 {[%clk 0:00:04]} 65. e6 {[%clk 0:00:19]}  Ke5 {[%clk 0:00:03]} 66. Re1+ {[%clk 0:00:17]}  Kd5 {[%clk 0:00:02]} 67. f8=Q {[%clk 0:00:15]}  Rxf8 {[%clk 0:00:03]} 68. Kxf8 {[%clk 0:00:16]}  b1=Q {[%clk 0:00:04]} 69. Rxb1 {[%clk 0:00:17]}  Kxe6 {[%clk 0:00:04]} 70. Re1+ {[%clk 0:00:17]} 1-0

[Event "January 9 Late 2024"]
[Site "https://www.chess.com"]
[Date "2024.01.09"]
[Round "4"]
[White "Kozin, Yuri"]
[Black "Andrews, Todd"]
[Result "1/2-1/2"]
[Board "123"]
[TimeControl "180+1"]
[WhiteFideId "4129920"]
[BlackFideId "2012456"]
[WhiteElo "2623"]
[BlackElo "2440"]
[WhiteTeam "RUS"]
[BlackTeam "USA"]
[WhiteClock "0:00:15"]
[BlackClock "0:00:05"]

1. e4 {[%clk 0:03:00]}  e6 {[%clk 0:03:00]} 2. d4 {[%clk 0:03:00]}  d5 {[%clk 0:03:01]} 3. Nc3 {[%clk 0:03:00]}  Bb4 {[%clk 0:03:01]} 4. e5 {[%clk 0:03:00]}  c5 {[%clk 0:03:01]} 5. Bd2 {[%clk 0:03:00]}  Ne7 {[%clk 0:03:00]} 6. Nb5 {[%clk 0:03:00]}  Bxd2+ {[%clk 0:03:00]} 7. Qxd2 {[%clk 0:03:01]}  O-O {[%clk 0:03:01]} 8. Nf3 {[%clk 0:02:59]}  cxd4 {[%clk 0:02:53]} 9. Nbxd4 {[%clk 0:02:59]}  Nbc6 {[%clk 0:02:50]} 10. O-O-O {[%clk 0:02:57]}  a6 {[%clk 0:02:46]} 11. Bd3 {[%clk 0:02:55]}  Nxd4 {[%clk 0:02:25]} 12. Nxd4 {[%clk 0:02:54]}  Qc7 {[%clk 0:02:23]} 13. Rhe1 {[%clk 0:02:48]}  f5 {[%clk 0:01:57]} 14. exf6 {[%clk 0:02:47]}  Rxf6 {[%clk 0:01:57]} 15. Qe3 {[%clk 0:02:24]}  Bd7 {[%clk 0:01:44]} 16. g3 {[%clk 0:02:20]}  Rc8 {[%clk 0:01:32]} 17. f4 {[%clk 0:02:18]}  b5 {[%clk 0:01:25]} 18. Kb1 {[%clk 0:02:09]}  b4 {[%clk 0:01:24]} 19. Nf3 {[%clk 0:01:42]}  Nc6 {[%clk 0:01:02]} 20. Ng5 {[%clk 0:01:34]}  h6 {[%clk 0:00:53]} 21. Nf3 {[%clk 0:01:34]}  a5 {[%clk 0:00:50]} 22. Bb5 {[%clk 0:01:32]}  Nb8 {[%clk 0:00:31]} 23. Bd3 {[%clk 0:01:27]}  Nc6 {[%clk 0:00:26]} 24. h4 {[%clk 0:01:27]}  a4 {[%clk 0:00:26]} 25. Bb5 {[%clk 0:01:16]}  a3 {[%clk 0:00:23]} 26. Bxc6 {[%clk 0:01:15]}  Qxc6 {[%clk 0:00:21]} 27. Nd4 {[%clk 0:01:14]}  Qc5 {[%clk 0:00:20]} 28. b3 {[%clk 0:01:09]}  Kh8 {[%clk 0:00:19]} 29. g4 {[%clk 0:01:07]}  Rcf8 {[%clk 0:00:14]} 30. Rf1 {[%clk 0:01:07]}  Qc7 {[%clk 0:00:11]} 31. Ne2 {[%clk 0:01:02]}  e5 {[%clk 0:00:12]} 32. f5 {[%clk 0:00:59]}  d4 {[%clk 0:00:12]} 33. Qd3 {[%clk 0:00:53]}  Rb6 {[%clk 0:00:10]} 34. Ng3 {[%clk 0:00:51]}  Bb5 {[%clk 0:00:10]} 35. Qd2 {[%clk 0:00:43]}  Bxf1 {[%clk 0:00:10]} 36. Rxf1 {[%clk 0:00:43]}  Rc8 {[%clk 0:00:10]} 37. Ne4 {[%clk 0:00:42]}  Rc6 {[%clk 0:00:11]} 38. Rc1 {[%clk 0:00:42]}  Qb7 {[%clk 0:00:11]} 39. Qe2 {[%clk 0:00:39]}  R6c7 {[%clk 0:00:09]} 40. f6 {[%clk 0:00:34]}  gxf6 {[%clk 0:00:09]} 41. Nxf6 {[%clk 0:00:34]}  Qc6 {[%clk 0:00:08]} 42. Ne4 {[%clk 0:00:34]}  Qg6 {[%clk 0:00:07]} 43. g5 {[%clk 0:00:33]}  h5 {[%clk 0:00:07]} 44. Rf1 {[%clk 0:00:30]}  Rxc2 {[%clk 0:00:06]} 45. Qf3 {[%clk 0:00:26]}  Rb2+ {[%clk 0:00:06]} 46. Ka1 {[%clk 0:00:26]}  Rbc2 {[%clk 0:00:04]} 47. Kb1 {[%clk 0:00:15]}  Rb2+ {[%clk 0:00:05]} 48. Ka1 {[%clk 0:00:15]}  Rbc2 {[%clk 0:00:05]} 49. Kb1 {[%clk 0:00:15]} 1/2-1/2